Cogmind - Beta 13 @@@ ROGUE MODE // 2024.04.04 @ 00:45:28 Player: Abkaal Result: Destroyed by 08-U8F(R) with Subdweller Machine Gun Performance ------------- Evolutions (0) 0 Regions Visited (2) 400 Robots Destroyed (27) 135 Value Destroyed (682) 682 Prototype IDs (5) 100 Alien Tech Used (0) 0 Bonus (0) 0 TOTAL SCORE: 1317 Bonus ------- None Cogmind --------- Core Integrity 0/250 Matter 241/300 Energy 118/200 System Corruption 4% Temperature Cool (0) Movement Treading (160) Location -10/Subcaves Parts ------- > --- POWER (1) -------- Subdweller Power Source > --- PROPULSION (2) --- Light Treads Spiked Treads > --- UTILITY (2) ------ Large Storage Unit Sensor Array > --- WEAPON (2) ------- Battle Rifle Battle Cannon > --- INVENTORY (15) --- Light Angular Momentum Engine Flight Unit Improved Heat Sink Large Storage Unit Medium Matter Pod (100) Signal Interpreter Improved Targeting Computer Makeshift Light Armor Plating Scrap Shield Beamcaster Light Cannon Mining Laser Scrap Shield Fragment (48) Peak State ------------ > --- POWER ------------ Subdweller Power Source > --- PROPULSION ------- Light Treads Spiked Treads > --- UTILITY ---------- Large Storage Unit Sensor Array > --- WEAPON ----------- Battle Rifle Battle Cannon > --- INVENTORY -------- Light Angular Momentum Engine Flight Unit Improved Heat Sink Large Storage Unit Medium Matter Pod Signal Interpreter Improved Targeting Computer Makeshift Light Armor Plating Scrap Shield Beamcaster Light Cannon Mining Laser Scrap Shield Fragment [Rating: 14] Favorites ----------- Power Light Ion Engine Engine Light Ion Engine Propulsion Light Treads Treads Light Treads Utility Sensor Array Device Sensor Array Storage Large Storage Unit Weapon EM Pulse Gun Energy Gun EM Pulse Gun Energy Cannon Beam Cannon Ballistic Gun Assault Rifle Ballistic Cannon Light Cannon Launcher Grenade Launcher Special Weapon Mining Laser Build | -11 -10 -10 ------- Run | Yrd Mat Sub Slots Evolved . | . . . Power . | . . . Propulsion . | . . . Utility . | . . . Weapon . | . . . Parts Attached 31 | 7 13 11 Power 5 | 1 1 3 Engine 5 | 1 1 3 Core . | . . . Reactor . | . . . Propulsion 7 | 2 3 2 Treads 7 | 2 3 2 Leg . | . . . Wheel . | . . . Hover . | . . . Flight . | . . . Utility 6 | 1 4 1 Device 3 | . 2 1 Storage 3 | 1 2 . Processor . | . . . Hackware . | . . . Protection . | . . . Artifact . | . . . Weapon 13 | 3 5 5 Energy Gun 5 | 2 3 . Energy Cannon 1 | . 1 . Ballistic Gun 3 | 1 . 2 Ballistic Cannon 2 | . . 2 Launcher 1 | . . 1 Special Weapon 1 | . 1 . Impact Weapon . | . . . Slashing Weapon . | . . . Piercing Weapon . | . . . Special Melee Weapon . | . . . Unidentified Prototypes . | . . . Parts Lost 6 | . . 6 Power 2 | . . 2 Propulsion 2 | . . 2 Utility . | . . . Weapon 2 | . . 2 Highest Loss Streak 3 | . . 3 To Critical Strikes . | . . . Average Slot Usage (%) 97 | . 98 95 Engine 13 | . 14 13 Treads 26 | . 28 24 Device 13 | . 13 14 Storage 14 | . 14 14 Energy Gun 10 | . 13 2 Energy Cannon 3 | . 2 6 Ballistic Gun 8 | . 9 7 Ballistic Cannon 2 | . . 9 Special Weapon 1 | . 2 . Naked Turns . | . . . Heaviest Build 32 | 12 29 32 Greatest Support 40 | 40 40 40 Greatest Overweight (x) 1 | . . 1 Average Overweight (x) . | . . . Largest Inventory Capacity 15 | 8 15 15 Average Capacity 12 | 6 12 15 Most Carried 15 | 6 15 15 Average Carried 12 | 3 12 14 Final Capacity 15 | 8 15 15 Final Carried 15 | 6 15 14 Class Distribution -------------------- 100% | Mutant Dominant Class ---------------- Mutant | -10/Materials Mutant | -10/Subcaves Resources | -11 -10 -10 ----------- Run | Yrd Mat Sub Matter Collected 828 | 235 349 244 Remotely . | . . . Salvage Created 646 | . 472 174 Parts 59 | . 46 13 Haulers Intercepted 1 | . 1 . Recyclers Shooed . | . . . Parts Field Recycled . | . . . Retrieved Matter . | . . . Parts Self-Destructed 14 | . . 14 Prevented . | . . . Kills | -11 -10 -10 ------- Run | Yrd Mat Sub Combat Hostiles Destroyed 22 | . 12 10 Guns 9 | . 7 2 Cannons 5 | . 2 3 AOE 8 | . 3 5 Classes Destroyed 6 | . 5 1 Builder 1 | . 1 . Hauler 1 | . 1 . Watcher 3 | . 3 . Swarmer 8 | . 6 2 Grunt 6 | . 6 . Subdweller 8 | . . 8 Best Kill Streak 8 | . 3 8 Combat Bots Only 8 | . 3 8 Max Kills in Single Turn 3 | . 3 2 Gunslinging . | . . . Exploded 3 | . 3 2 Melee . | . . . Uniques/NPCs Destroyed . | . . . Combat | -11 -10 -10 -------- Run | Yrd Mat Sub Hostile Shots Fired 95 | . 30 65 Missed 23 | . 8 15 Damage Taken 1241 | . 309 932 Core 268 | . 51 217 Absorbed by Shields . | . . . Regen/Repaired (Parts) 25 | . 25 . Core Remaining (%) 100 | 100 . . Volleys Fired 80 | . 48 32 Largest 2 | . 2 2 Hottest 140 | . 140 100 Shots Fired 141 | . 80 61 Gun 69 | . 55 14 Cannon 46 | . 6 40 Launcher 7 | . . 7 Special 19 | . 19 . Kinetic 57 | . 23 34 Thermal 44 | . 25 19 Explosive 7 | . . 7 Electromagnetic 33 | . 32 1 Robot Hit Streak 16 | . 6 16 Robot Miss Streak 5 | . 4 5 Penetration Max . | . . . Secondary Targets . | . . . Shots Hit Robots 72 | . 29 43 Core Hits 40 | . 21 19 Critical Kills . | . . . Critical Parts Destroyed . | . . . Critical Strikes 1 | . . 1 Blast 1 | . . 1 Melee Attacks . | . . . Impact . | . . . Slashing . | . . . Piercing . | . . . Sneak Attacks . | . . . Combat Hostiles . | . . . Follow-up Attacks . | . . . Damage Inflicted 2281 | . 592 1689 Guns 427 | . 329 98 Cannons 687 | . 107 580 Explosions 1160 | . 149 1011 Melee . | . . . Ramming 7 | . 7 . Kinetic 478 | . 79 399 Thermal 535 | . 256 279 Explosive 1011 | . . 1011 Electromagnetic 250 | . 250 . Impact . | . . . Slashing . | . . . Piercing . | . . . Highest Corruption 4 | . 4 4 Average Corruption 3 | . 3 4 Corruption Purged . | . . . Corruption Blocked . | . . . Effects 25 | . 13 12 Message Errors 6 | . 2 4 Matter Fused 5 | . 3 2 Heat Flow Errors 4 | . 1 3 Energy Discharges 1 | . 1 . Parts Fused 1 | . 1 . Data Loss (minor) 3 | . 3 . Misfires 2 | . 1 1 Alerts 1 | . 1 . Weapon Failures 2 | . . 2 Overload Shots . | . . . Overflow Damage . | . . . Projectiles . | . . . Explosions . | . . . Melee . | . . . Knockbacks 4 | . . 4 Impact . | . . . Kinetic 4 | . . 4 Secondary . | . . . Self-Inflicted Damage 117 | . 78 39 Shots 5 | . 2 3 Rammed 1 | . 1 . Targets Rammed 1 | . 1 . Kicked . | . . . Crushed . | . . . Highest Temperature 276 | . 276 247 Average Temperature 74 | . 71 108 Received Heat Transfer 129 | . 84 45 Effects 1 | . . 1 Energy Bleed 1 | . . 1 Siege Activations . | . . . Robots Corrupted . | . . . Combat Hostiles . | . . . Parts Fried . | . . . Impact Corruptions . | . . . Robots Melted . | . . . Combat Hostiles . | . . . Parts Melted . | . . . Heat Transferred 914 | . 322 592 Parts Sabotaged . | . . . Parts Stolen . | . . . Parts Stripped . | . . . Power Chain Reactions 2 | . 2 . Alert | -11 -10 -10 ------- Run | Yrd Mat Sub Peak Influence 212 | . 212 . Initial . | . . . Average 77 | . 80 . Maximum Alert Level 1 | . 1 . Low Security (%) 99 | 100 99 . Level 1 . | . . . Level 2 . | . . . Level 3 . | . . . Level 4 . | . . . Level 5 . | . . . High Security . | . . . Max Security . | . . . Squads Dispatched 1 | . 1 . Investigation . | . . . Extermination . | . . . Reinforcement 1 | . 1 . Assault . | . . . Garrison . | . . . Intercept . | . . . Searches Triggered . | . . . Construction Impeded . | . . . Haulers Reinforced . | . . . Active Scanning Responses . | . . . Cargo Convoy Interrupts . | . . . Stealth | -11 -10 -10 --------- Run | Yrd Mat Sub Distress Signals . | . . . Communications Jammed . | . . . Distress Signals . | . . . Times Spotted 41 | . 22 19 Peak Tracking Total 6 | . 5 6 Tactical Retreats 1 | . 1 . Traps | -11 -10 -10 ------- Run | Yrd Mat Sub Traps Triggered 3 | . 3 . Indirectly . | . . . Trap Hack Attempts . | . . . Triggered . | . . . Disarmed . | . . . Reprogrammed . | . . . Reused . | . . . Traps Extracted . | . . . Installed . | . . . Triggered . | . . . Machines | -11 -10 -10 ---------- Run | Yrd Mat Sub Machines Disabled 2 | . 2 . Max in Single Turn 1 | . 1 . Machines Repaired . | . . . Machines Dismantled . | . . . Machines Sabotaged . | . . . Overloaded Fab Kills . | . . . Hacking | -11 -10 -10 --------- Run | Yrd Mat Sub Machines Accessed 9 | . 9 . Terminals 7 | . 7 . Fabricators . | . . . Repair Stations 1 | . 1 . Recycling Units 1 | . 1 . Scanalyzers . | . . . Garrison Access . | . . . Total Hacks 25 | . 25 . Successful 12 | . 12 . Failed 12 | . 12 . Catastrophic 2 | . 2 . Database Lockouts 1 | . 1 . Manual 6 | . 6 . Terminals 20 | . 20 . Fabricators . | . . . Repair Stations 2 | . 2 . Recycling Units 3 | . 3 . Scanalyzers . | . . . Garrison Access . | . . . Terminal Hacks 9 | . 9 . Prototype ID Bank 4 | . 4 . Alert Level 2 | . 2 . Locate Traps 2 | . 2 . Zone Layout 1 | . 1 . Fabricator Hacks . | . . . Repair Station Hacks 2 | . 2 . Scan Component 1 | . 1 . Repair 1 | . 1 . Recycling Unit Hacks 1 | . 1 . Report Inventory 1 | . 1 . Scanalyzer . | . . . Garrison Access Hacks . | . . . Unauthorized Hacks . | . . . Terminals . | . . . Fabricators . | . . . Repair Stations . | . . . Recycling Units . | . . . Scanalyzers . | . . . Garrison Access . | . . . Data Cores Recovered . | . . . Used . | . . . Hacking Detections 9 | . 9 . Full Trace Events . | . . . Feedback Events . | . . . Feedback Blocked . | . . . Robot Schematics Acquired . | . . . Robots Built . | . . . Authchips . | . . . Time . | . . . Total Robot Build Rating . | . . . Part Schematics Acquired . | . . . Parts Built . | . . . Authchips . | . . . Time . | . . . Total Part Build Rating . | . . . Parts Repaired 1 | . 1 . Time 26 | . 26 . Parts Recycled . | . . . Recycled Matter . | . . . Retrieved Matter . | . . . Retrieved Components . | . . . Parts Scanalyzed . | . . . Part Schematics Acquired . | . . . Parts Damaged . | . . . Bothacking | -11 -10 -10 ------------ Run | Yrd Mat Sub Used RIF Installer . | . . . Robots Hacked . | . . . Non-combat . | . . . Combat . | . . . Robot Hacks Applied . | . . . Relay Couplers Released . | . . . Fabnet Peak Effective % . | . . . Robots Rewired . | . . . Allies Hacked . | . . . Hacks Repelled . | . . . Allies | -11 -10 -10 -------- Run | Yrd Mat Sub Total Allies . | . . . Largest Group . | . . . Highest-Rated Group . | . . . Highest-Rated Ally . | . . . Total Orders . | . . . Ally Attacks . | . . . Total Damage . | . . . Kills . | . . . Allies Corrupted . | . . . Allies Melted . | . . . Intel | -11 -10 -10 ------- Run | Yrd Mat Sub Robot Analysis Total . | . . . Derelict Logs Recovered 1 | . . 1 Drone Launches . | . . . Drone Recoveries . | . . . Exploration | -11 -10 -10 ------------- Run | Yrd Mat Sub Turns Passed 2067 | 65 1462 540 Spaces Moved 1015 | 32 744 239 Core 1 | 1 . . Treads 1014 | 31 744 239 Legs . | . . . Wheels . | . . . Hover . | . . . Flight . | . . . Fastest Speed 50 | 50 160 160 Average Speed 163 | 156 160 175 Slowest Speed 240 | 160 160 240 Overloaded Moves . | . . . Propulsion Burnouts . | . . . Robots Hopped . | . . . Cave-ins Triggered . | . . . Exploration Rate (%) 36 | 4 82 22 Regions Visited 2 Branch Regions 1 Pre-discovered Areas 1 | . . 1 Known Exits Taken . | . . . Unknown Exits Taken 2 | 1 1 . Scrap Searched 2 | . . 2 Spaces Dug 13 | . 13 . Terrain Destroyed 57 | . 23 34 Melee . | . . . Projectile 19 | . 19 . AOE 38 | . 4 34 Terrain Rammed . | . . . Walls Destroyed . | . . . Machines Disabled . | . . . Actions | -11 -10 -10 --------- Run | Yrd Mat Sub Total 1249 | 44 903 302 Wait 67 | . 66 1 Move 1013 | 31 743 239 Hop . | . . . Pick Up 32 | 6 17 9 Fast Attach 12 | 6 4 2 Attach 6 | . . 6 Detach 2 | . . 2 Swap 13 | 1 9 3 Drop 23 | . 15 8 Fire 80 | . 48 32 Melee . | . . . Ram . | . . . Kick . | . . . Crush 1 | . 1 . Escape Stasis . | . . . Rewire . | . . . Trap . | . . . Miscellaneous . | . . . Route ------- -11/Scrapyard -10/Materials (discovered 5 exits: [*Mat x2] / [*Min x2] / [*Sub]) -10/Subcaves History --------- Turn | Location | Event 24 | -11/Scrapyard | Discovered new exit (range 16) 66 | -11/Scrapyard | Entered Materials 324 | -10/Materials | Build established: Mutant 390 | -10/Materials | Discovered new exit (range 15) 473 | -10/Materials | Central database locked down 524 | -10/Materials | Discovered new exit (range 12) 745 | -10/Materials | Discovered new exit (range 7) 797 | -10/Materials | Repaired EM Pulse Gun 1325 | -10/Materials | Discovered new exit (range 8) 1517 | -10/Materials | Discovered new exit (range 8) 1528 | -10/Materials | Entered Subcaves 1659 | -10/Subcaves | Learned location of Mines (-8) 1677 | -10/Subcaves | Ambushed by swarm of Subdwellers 1681 | -10/Subcaves | Ambushed by Subdwellers from Twisted Machinery 1681 | -10/Subcaves | Ambushed by Subdwellers from Twisted Machinery 1686 | -10/Subcaves | Ambushed by Subdweller buried in earth 1687 | -10/Subcaves | Ambushed by Subdweller buried in earth 1690 | -10/Subcaves | Ambushed by Subdweller buried in earth 1718 | -10/Subcaves | Core integrity fell below 50% 1723 | -10/Subcaves | Lost 4 allies 1755 | -10/Subcaves | Destroyed 8 combat bots 1758 | -10/Subcaves | Lost 3 parts (1p1n1w) 2023 | -10/Subcaves | Shifting Twisted Machinery released Sub. Monowheel 2027 | -10/Subcaves | Shifting Twisted Machinery released Mak. Light Armor Plating 2063 | -10/Subcaves | Core integrity fell below 20% 2064 | -10/Subcaves | Ambushed by Subdweller buried in earth 2068 | -10/Subcaves | Destroyed by 08-U8F(R) with Subdweller Machine Gun Last Messages --------------- 01897_ S-10 Pest destroyed. 01900_ Acquired 20 matter. 01905_ Acquired 2 matter. 01907_ Acquired 6 matter. 01925_ System corrupted: Heat flow error (+160). 01999_ Searching scrap... 01999_ Found Battle Cannon. 01999_ Found 34 Matter. 02000_ Acquired 26 matter. 02003_ Dropped Visual Processing Unit. 02013_ Acquired Spk. Treads. Sub. Monowheel falls loose from the Twisted Machinery. Mak. Light Armor Plating falls loose from the Twisted Machinery. 02034_ System corrupted: Matter fused (-10). 02036_ Dropped Lgt. Ion Engine. 02037_ Acquired Mak. Light Armor Plating. 02064_ Lgt. Ion Engine destroyed. 02065_ 08-U8F(R): "ARGHSUB!" Map ----- +----------------------------------------------------+ | ???????????????????????????????????????????? | | ???????????????????????????????????????????? | | ???????????????????????????????????????????? | | ???????????????????????????????????????????? | | ???????????????????????????????????????????? | | ???????????????????????????????????????????? | | ???????????????????????????????????????????? | | ???????????????????????????????????????????? | | ???????????????????????????????????????????? | | ???????????????????????????????????????????? | | ???????????????????????????????????????????? | | ????????????????????? ????????????????????? | | ?????????????????? % ???????????????????? | | ?????????????????# ???????????????????? | | ?????????????????? & ???????????????????? | | ?????????????????? R R???????????????????? | | ?????????????????? #??????????????????? | | ??????????????????# ##????????????????? | | ???????????????????"" ##???????????????? | | ????????????????????" #???????????????? | | ????????????????????? ###?????????????? | | ?????????????????????# ; ##????????????? | | ?????????????????????#; #????????????? | | ?????????????????????#; #????????????? | | ?????????????????????# ;#????????????? | | ?????????????????????# @ ;#????????????? | | ?????????????????????#; R ;#????????????? | | ?????????????????????#; % #????????????? | | ?????????????????????#; #????????????? | | ?????????????????????#;; ; ##????????????? | | ?????????????????????##; ####?????????????? | | ??????????????????????## #???????????????? | | ??????????? ??????????## "#???????????????? | | ?????????# ????????##= ""#???????????????? | | ????????# #####?## """"#???????????????? | | ?????????# ## """"#???????????????? | | ?????????? ??# * ""##??????????????? | | ??????????# ### ""#??????????????? | | ???????????## ##??????????????? | | ???????????# ###???????????????? | | ??????????# # #?????????????????? | | ??????????## #?# ##????????????????? | | ???????????# ??# ## #????????????????? | | ???????????#???####?## #????????????????? | | ????????????????????## #????????????????? | | ????????????????????# ###????????????????? | | ????????????????????# #?????????????????? | | ????????????????????## ####??????????????? | | ????????????????????# #??????????????? | | ???????????#???????## ##??????????????? | +----------------------------------------------------+ Best States ------------- Heat Dissipation 25 Energy Generation 10 Energy Capacity 250 Matter Stores 300 Matter Capacity 300 Sight Range 16 Robot Scan Range 14 Terrain Scan Density 10 Evasion (%) 40 Recoil Reduction 2 Item Schematics ----------------- None Robot Schematics ------------------ None Fabricated ------------ Nothing Alien Tech Used ----------------- None Achievements -------------- None Challenges ------------ None Game ------ Seed DynamicUltimateInverter Manual? 0 Play Time 00:23:24 Cumulative 13.8 hours Start 2024.04.04 @ 00:23:47 End 2024.04.04 @ 00:45:28 Sessions 1 Manual Loads 0 Difficulty Rogue Special Mode None Game No. 10 Rogue 10 Adventurer 0 Explorer 0 Win Type - Total 0 Types 0/0/0/0/0/0/0/0/0 Lore% 17 Gallery% 21 Achievement% 15 Wizard Run 0 Options --------- Layout 2 ASCII 0 Keyboard 1 Movement Numpad Keybinds 0 Fullscreen 1 Font 24/Smallcaps Map View 50x44 Zoom Use 0% Tactical HUD 1 Map Filters NONE Filters NONE Steam 1 RUN: f092c297-7a3d-4361-9561-47a046589741